[Event "106th British-ch Major 2019"]
[Site "Torquay"]
[Date "2019.07.27"]
[Round "1.1"]
[White "Clarke, Brandon Gi"]
[Black "Ifalore, Michael"]
[Result "1-0"]
[ECO "C95"]
[WhiteElo "2433"]
[BlackElo "1907"]
[Annotator "NA"]
[PlyCount "69"]
[EventDate "2019.07.27"]
[EventType "swiss"]
[EventCountry "GBR"]
[SourceTitle "playchess.com"]
[Source "ChessBase"]
[SourceQuality "1"]
[TimeControl "40/5400+30:1800+30"]

1. e4 {[%emt 0:00:00]} e5 {[%emt 0:00:00]} 2. Nf3 {[%emt 0:00:00]} Nc6 {[%emt 0:00:00]} 3. Bb5 {[%emt 0:00:00]} a6 {[%emt 0:00:00]} 4. Ba4 {[%emt 0:00:01]} Nf6 {[%emt 0:00:09]} 5. O-O {[%emt 0:00:09]} b5 {[%emt 0:00:14]} 6. Bb3 {[%emt 0:00:03]} Be7 {[%emt 0:00:09]} 7. Re1 {[%emt 0:00:18]} O-O {[%emt 0:00:20]} 8. c3 {[%emt 0:00:16]} d6 {[%emt 0:00:24]} 9. h3 {[%emt 0:00:07]} Nb8 {[%emt 0:00:17]} 10. d4 {[%emt 0:00:17]} Nbd7 {[%emt 0:00:50]} 11. Nbd2 {[%emt 0:00:51]} Bb7 {[%emt 0:00:45]} 12. Bc2 {[%emt 0:00:16]} Re8 {[%emt 0:01:50]} 13. Nf1 {[%emt 0:00:04]} Bf8 {[%emt 0:00:47]} 14. Ng3 {[%emt 0:00:03]} g6 {[%emt 0:00:34]} 15. a4 {[%emt 0:00:09]} c5 {[%emt 0:02:36]} 16. d5 {[%emt 0:00:03]} c4 {[%emt 0:00:44]} 17. Bg5 {[%emt 0:00:05]} Nc5 {[%emt 0:00:42]} 18. Qd2 {[%emt 0:01:16]} Be7 {[%emt 0:01:28]} 19. Bh6 {[%emt 0:07:38]} Nfd7 {[%emt 0:01:03]} 20. Nh2 {[%emt 0:22:36]} Nxa4 {[%emt 0:26:19]} 21. Bxa4 {[%emt 0:36:00]} bxa4 {[%emt 0:00:06]} 22. Rxa4 {[%emt 0:05:12]} Nc5 {[%emt 0:04:33]} 23. Rxc4 {[%emt 0:00:33]} a5 {[%emt 0:00:05]} 24. Ng4 {[%emt 0:00:04]} Ba6 {[%emt 0:02:20]} 25. Rxc5 {[%emt 0:00:32]} dxc5 {[%emt 0:00:14]} 26. Nxe5 {[%emt 0:00:31]} Qc7 {[%emt 0:05:55]} 27. Ng4 {[%emt 0:01:52]} Rad8 {[%emt 0:22:36]} 28. e5 {[%emt 0:03:38]} Bc8 {[%emt 0:00:04]} 29. d6 {[%emt 0:04:21]} Qc6 {[%emt 0:01:24]} 30. Qf4 {[%emt 0:02:27]} Bxg4 {[%emt 0:00:09]} 31. dxe7 {[%emt 0:01:29]} Rd1 {[%emt 0:00:06]} 32. Rxd1 {[%emt 0:01:08]} Bxd1 {[%emt 0:00:06]} 33. Ne4 {[%emt 0:03:04]} Rxe7 {[%emt 0:02:07]} 34. Nf6+ {[%emt 0:00:03]} Kh8 {[%emt 0:00:07]} 35. Bf8 {[%emt 0:00:11]} 1-0

[Event "106th British-ch Major 2019"]
[Site "Torquay"]
[Date "2019.07.27"]
[Round "1.2"]
[White "Pink, Joshua"]
[Black "Payne, Matthew J"]
[Result "1/2-1/2"]
[ECO "A03"]
[WhiteElo "1907"]
[BlackElo "2168"]
[Annotator "NA"]
[PlyCount "94"]
[EventDate "2019.07.27"]
[EventType "swiss"]
[EventCountry "GBR"]
[SourceTitle "playchess.com"]
[Source "ChessBase"]
[SourceQuality "1"]
[TimeControl "40/5400+30:1800+30"]

1. f4 {[%emt 0:00:22]} Nf6 {[%emt 0:00:00]} 2. Nf3 {[%emt 0:00:14]} g6 {[%emt 0:00:19]} 3. d3 {[%emt 0:01:53]} d5 {[%emt 0:03:25]} 4. e3 {[%emt 0:00:00]} Bg7 {[%emt 0:01:23]} 5. Be2 {[%emt 0:00:00]} O-O {[%emt 0:00:57]} 6. O-O {[%emt 0:00:00]} c5 {[%emt 0:02:39]} 7. Nc3 {[%emt 0:00:15]} Nc6 {[%emt 0:05:27]} 8. e4 {[%emt 0:02:01]} d4 {[%emt 0:08:03]} 9. Nb1 {[%emt 0:00:10]} a6 {[%emt 0:05:23]} 10. a4 {[%emt 0:03:41]} Rb8 {[%emt 0:01:02]} 11. Qe1 {[%emt 0:04:21]} b5 {[%emt 0:10:28]} 12. axb5 {[%emt 0:06:40]} axb5 {[%emt 0:00:10]} 13. Qh4 {[%emt 0:00:09]} e5 {[%emt 0:12:10]} 14. f5 {[%emt 0:13:05]} Ne8 {[%emt 0:12:14]} 15. Bg5 {[%emt 0:04:25]} f6 {[%emt 0:00:26]} 16. fxg6 {[%emt 0:02:57]} hxg6 {[%emt 0:00:08]} 17. Bh6 {[%emt 0:00:26]} Qd7 {[%emt 0:05:35]} 18. Bxg7 {[%emt 0:05:38]} Qxg7 {[%emt 0:01:54]} 19. Nbd2 {[%emt 0:04:01]} Nd6 {[%emt 0:03:28]} 20. Qg3 {[%emt 0:04:13]} Be6 {[%emt 0:04:31]} 21. Ra6 {[%emt 0:03:06]} Rfc8 {[%emt 0:01:04]} 22. Nh4 {[%emt 0:03:07]} g5 {[%emt 0:01:46]} 23. Bg4 {[%emt 0:04:26]} Bxg4 {[%emt 0:14:04]} 24. Qxg4 {[%emt 0:00:11]} Qe7 {[%emt 0:00:01]} 25. Nf5 {[%emt 0:02:38]} Nxf5 {[%emt 0:00:16]} 26. Qxf5 {[%emt 0:00:14]} Kg7 {[%emt 0:00:22]} 27. Rf3 {[%emt 0:02:00]} Ra8 {[%emt 0:00:57]} 28. Rh3 {[%emt 0:03:40]} Kg8 {[%emt 0:01:16]} 29. Rxa8 {[%emt 0:01:55]} Rxa8 {[%emt 0:00:03]} 30. Rh6 {[%emt 0:00:34]} Rf8 {[%emt 0:00:56]} 31. Rg6+ {[%emt 0:00:45]} Kf7 {[%emt 0:00:03]} 32. Rxg5 {[%emt 0:02:10]} Ke8 {[%emt 0:00:08]} 33. Rh5 {[%emt 0:02:03]} Qd7 {[%emt 0:00:49]} 34. Qg6+ {[%emt 0:02:37]} Qf7 {[%emt 0:00:21]} 35. Qxf7+ {[%emt 0:00:31]} Kxf7 {[%emt 0:00:37]} 36. Rh7+ {[%emt 0:00:19]} Ke6 {[%emt 0:00:11]} 37. Rb7 {[%emt 0:01:22]} Rb8 {[%emt 0:00:08]} 38. Nb3 {[%emt 0:02:01]} c4 {[%emt 0:03:08]} 39. dxc4 {[%emt 0:00:36]} Rxb7 {[%emt 0:00:41]} 40. Nc5+ {[%emt 0:00:07]} Ke7 {[%emt 0:00:03]} 41. Nxb7 {[%emt 0:30:18]} bxc4 {[%emt 0:30:05]} 42. Kf2 {[%emt 0:02:57]} Nb4 {[%emt 0:00:21]} 43. Na5 {[%emt 0:01:31]} c3 {[%emt 0:00:30]} 44. bxc3 {[%emt 0:00:06]} dxc3 {[%emt 0:00:03]} 45. Ke2 {[%emt 0:01:13]} Nxc2 {[%emt 0:00:11]} 46. Kd3 {[%emt 0:00:14]} Ne1+ {[%emt 0:00:03]} 47. Kxc3 {[%emt 0:00:05]} Nxg2 {[%emt 0:00:03]} 1/2-1/2

[Event "106th British-ch Major 2019"]
[Site "Torquay"]
[Date "2019.07.27"]
[Round "1.3"]
[White "Taylor, Adam A"]
[Black "Nayak, Raghav"]
[Result "1-0"]
[ECO "B27"]
[WhiteElo "2168"]
[BlackElo "1906"]
[Annotator "NA"]
[PlyCount "61"]
[EventDate "2019.07.27"]
[EventType "swiss"]
[EventCountry "GBR"]
[SourceTitle "playchess.com"]
[Source "ChessBase"]
[SourceQuality "1"]
[TimeControl "40/5400+30:1800+30"]

1. Nf3 {[%emt 0:00:00]} g6 {[%emt 0:02:42]} 2. d4 {[%emt 0:00:00]} Bg7 {[%emt 0:00:08]} 3. e4 {[%emt 0:01:23]} c5 {[%emt 0:00:28]} 4. c3 {[%emt 0:01:30]} Qc7 {[%emt 0:11:53]} 5. h3 {[%emt 0:16:03]} b6 {[%emt 0:06:50]} 6. Be3 {[%emt 0:00:51]} Nf6 {[%emt 0:04:57]} 7. Nbd2 {[%emt 0:01:18]} O-O {[%emt 0:08:31]} 8. Bd3 {[%emt 0:06:27]} Bb7 {[%emt 0:03:12]} 9. O-O {[%emt 0:03:28]} d6 {[%emt 0:04:54]} 10. Qe2 {[%emt 0:04:12]} Nfd7 {[%emt 0:04:29]} 11. Rad1 {[%emt 0:31:56]} h6 {[%emt 0:06:43]} 12. Nh2 {[%emt 0:07:49]} e5 {[%emt 0:01:07]} 13. dxe5 {[%emt 0:01:22]} Nxe5 {[%emt 0:00:35]} 14. Bb1 {[%emt 0:03:32]} d5 {[%emt 0:00:46]} 15. exd5 {[%emt 0:01:33]} Bxd5 {[%emt 0:00:21]} 16. f4 {[%emt 0:02:52]} Ned7 {[%emt 0:01:34]} 17. f5 {[%emt 0:07:01]} g5 {[%emt 0:03:16]} 18. Ne4 {[%emt 0:10:02]} Bxe4 {[%emt 0:18:53]} 19. Bxe4 {[%emt 0:00:19]} Nc6 {[%emt 0:00:21]} 20. Qb5 {[%emt 0:00:00]} Nde5 {[%emt 0:04:04]} 21. f6 {[%emt 0:00:00]} Bh8 {[%emt 0:01:54]} 22. h4 {[%emt 0:00:00]} g4 {[%emt 0:05:48]} 23. Bxh6 {[%emt 0:00:00]} g3 {[%emt 0:00:02]} 24. Nf3 {[%emt 0:00:00]} Bxf6 {[%emt 0:04:49]} 25. Nxe5 {[%emt 0:00:00]} Qxe5 {[%emt 0:01:56]} 26. Qxc6 {[%emt 0:00:00]} Bxh4 {[%emt 0:01:52]} 27. Rf5 {[%emt 0:00:32]} Qh8 {[%emt 0:00:38]} 28. Bxf8 {[%emt 0:00:21]} Rxf8 {[%emt 0:00:21]} 29. Qd5 {[%emt 0:00:21]} Be7 {[%emt 0:00:51]} 30. Rh5 {[%emt 0:00:15]} Qf6 {[%emt 0:00:30]} 31. Qf5 {[%emt 0:00:07]} 1-0

[Event "106th British-ch Major 2019"]
[Site "Torquay"]
[Date "2019.07.27"]
[Round "1.4"]
[White "Ruane, Brendan J"]
[Black "Graham, David B"]
[Result "0-1"]
[ECO "A36"]
[WhiteElo "1904"]
[BlackElo "2162"]
[Annotator "NA"]
[PlyCount "54"]
[EventDate "2019.07.27"]
[EventType "swiss"]
[EventCountry "GBR"]
[SourceTitle "playchess.com"]
[Source "ChessBase"]
[SourceQuality "1"]
[TimeControl "40/5400+30:1800+30"]

1. g3 {[%emt 0:00:00]} g6 {[%emt 0:00:00]} 2. Bg2 {[%emt 0:00:00]} Bg7 {[%emt 0:00:00]} 3. d3 {[%emt 0:00:14]} c5 {[%emt 0:02:16]} 4. e3 {[%emt 0:03:47]} Nc6 {[%emt 0:00:07]} 5. Ne2 {[%emt 0:01:45]} e5 {[%emt 0:04:48]} 6. c4 {[%emt 0:00:43]} Nge7 {[%emt 0:00:14]} 7. Nbc3 {[%emt 0:00:33]} O-O {[%emt 0:01:11]} 8. O-O {[%emt 0:01:03]} d6 {[%emt 0:00:17]} 9. Bd2 {[%emt 0:09:07]} Rb8 {[%emt 0:11:43]} 10. Rc1 {[%emt 0:06:13]} Nb4 {[%emt 0:05:49]} 11. Be1 {[%emt 0:01:37]} Bf5 {[%emt 0:01:56]} 12. e4 {[%emt 0:00:47]} Be6 {[%emt 0:01:04]} 13. a3 {[%emt 0:01:51]} Nbc6 {[%emt 0:00:13]} 14. Bd2 {[%emt 0:05:15]} a6 {[%emt 0:02:25]} 15. Nd5 {[%emt 0:01:40]} b5 {[%emt 0:03:05]} 16. b4 {[%emt 0:12:49]} cxb4 {[%emt 0:10:17]} 17. cxb5 {[%emt 0:00:39]} axb5 {[%emt 0:08:06]} 18. axb4 {[%emt 0:15:34]} Qd7 {[%emt 0:06:37]} 19. Nxe7+ {[%emt 0:07:59]} Nxe7 {[%emt 0:01:38]} 20. Nc3 {[%emt 0:00:07]} Rfc8 {[%emt 0:08:04]} 21. Qe2 {[%emt 0:06:46]} Nc6 {[%emt 0:01:57]} 22. Nd5 {[%emt 0:01:42]} Nd4 {[%emt 0:00:35]} 23. Qe3 {[%emt 0:04:10]} Bxd5 {[%emt 0:00:19]} 24. exd5 {[%emt 0:01:00]} f5 {[%emt 0:08:40]} 25. f4 {[%emt 0:05:53]} Rxc1 {[%emt 0:04:51]} 26. Rxc1 {[%emt 0:00:43]} exf4 {[%emt 0:01:56]} 27. gxf4 {[%emt 0:00:03]} Nb3 {[%emt 0:01:40]} 0-1

[Event "106th British-ch Major 2019"]
[Site "Torquay"]
[Date "2019.07.27"]
[Round "1.5"]
[White "Ethelontis, Alexandros N"]
[Black "Paulden, Tim"]
[Result "1-0"]
[ECO "A20"]
[WhiteElo "2154"]
[BlackElo "1902"]
[Annotator "NA"]
[PlyCount "77"]
[EventDate "2019.07.27"]
[EventType "swiss"]
[EventCountry "GBR"]
[SourceTitle "playchess.com"]
[Source "ChessBase"]
[SourceQuality "1"]
[TimeControl "40/5400+30:1800+30"]

1. c4 {[%emt 0:00:00]} e5 {[%emt 0:00:05]} 2. g3 {[%emt 0:00:00]} d5 {[%emt 0:00:14]} 3. cxd5 {[%emt 0:00:05]} Qxd5 {[%emt 0:00:06]} 4. Nf3 {[%emt 0:00:08]} Nf6 {[%emt 0:00:16]} 5. Nc3 {[%emt 0:01:49]} Qa5 {[%emt 0:00:23]} 6. Bg2 {[%emt 0:06:06]} Nc6 {[%emt 0:00:12]} 7. d4 {[%emt 0:10:04]} exd4 {[%emt 0:08:32]} 8. Nxd4 {[%emt 0:00:10]} Nxd4 {[%emt 0:01:52]} 9. Qxd4 {[%emt 0:00:09]} c6 {[%emt 0:03:40]} 10. O-O {[%emt 0:18:41]} Be7 {[%emt 0:04:43]} 11. Rb1 {[%emt 0:18:27]} O-O {[%emt 0:09:22]} 12. Bf4 {[%emt 0:07:50]} Rd8 {[%emt 0:17:25]} 13. Qe5 {[%emt 0:00:58]} Qxe5 {[%emt 0:09:08]} 14. Bxe5 {[%emt 0:00:08]} Be6 {[%emt 0:04:56]} 15. b4 {[%emt 0:03:14]} Ng4 {[%emt 0:04:47]} 16. Bf4 {[%emt 0:01:43]} g5 {[%emt 0:05:58]} 17. Bc1 {[%emt 0:00:24]} Rd4 {[%emt 0:09:55]} 18. a3 {[%emt 0:16:02]} Rad8 {[%emt 0:01:22]} 19. Bb2 {[%emt 0:05:45]} Rd2 {[%emt 0:04:38]} 20. h3 {[%emt 0:01:21]} Nf6 {[%emt 0:02:38]} 21. Rfe1 {[%emt 0:02:28]} Bc4 {[%emt 0:05:25]} 22. Bf3 {[%emt 0:01:54]} h6 {[%emt 0:01:10]} 23. Ba1 {[%emt 0:00:12]} a6 {[%emt 0:02:16]} 24. Na4 {[%emt 0:00:16]} Nd7 {[%emt 0:01:46]} 25. Bc3 {[%emt 0:01:37]} Rc2 {[%emt 0:00:54]} 26. Rb2 {[%emt 0:01:02]} Rxb2 {[%emt 0:00:23]} 27. Nxb2 {[%emt 0:00:07]} Bb3 {[%emt 0:00:13]} 28. Nd3 {[%emt 0:00:38]} Nb6 {[%emt 0:01:00]} 29. b5 {[%emt 0:01:16]} Na4 {[%emt 0:00:37]} 30. Ba5 {[%emt 0:00:27]} b6 {[%emt 0:00:22]} 31. Bb4 {[%emt 0:00:39]} c5 {[%emt 0:00:31]} 32. bxa6 {[%emt 0:00:10]} b5 {[%emt 0:00:32]} 33. Ba5 {[%emt 0:00:17]} Rc8 {[%emt 0:00:38]} 34. a7 {[%emt 0:00:20]} c4 {[%emt 0:00:21]} 35. Nb4 {[%emt 0:00:17]} c3 {[%emt 0:00:38]} 36. a8=Q {[%emt 0:00:46]} Rxa8 {[%emt 0:00:02]} 37. Bxa8 {[%emt 0:00:10]} Bf6 {[%emt 0:00:40]} 38. Bd5 {[%emt 0:01:40]} Nc5 {[%emt 0:00:23]} 39. Bb6 {[%emt 0:00:11]} 1-0

[Event "106th British-ch Major 2019"]
[Site "Torquay"]
[Date "2019.07.27"]
[Round "1.6"]
[White "Salmons, Calum"]
[Black "Guthrie, David"]
[Result "0-1"]
[ECO "B23"]
[WhiteElo "1898"]
[BlackElo "2142"]
[Annotator "NA"]
[PlyCount "102"]
[EventDate "2019.07.27"]
[EventType "swiss"]
[EventCountry "GBR"]
[SourceTitle "playchess.com"]
[Source "ChessBase"]
[SourceQuality "1"]
[TimeControl "40/5400+30:1800+30"]

1. e4 {[%emt 0:00:00]} c5 {[%emt 0:00:00]} 2. Nc3 {[%emt 0:00:00]} Nc6 {[%emt 0:00:16]} 3. f4 {[%emt 0:00:00]} g6 {[%emt 0:01:03]} 4. Nf3 {[%emt 0:00:03]} Bg7 {[%emt 0:00:07]} 5. d3 {[%emt 0:00:08]} d6 {[%emt 0:00:55]} 6. Be3 {[%emt 0:00:12]} Nf6 {[%emt 0:02:01]} 7. d4 {[%emt 0:04:22]} cxd4 {[%emt 0:04:41]} 8. Nxd4 {[%emt 0:00:11]} O-O {[%emt 0:01:45]} 9. Bb5 {[%emt 0:05:23]} Ng4 {[%emt 0:07:00]} 10. Bg1 {[%emt 0:11:59]} Nxd4 {[%emt 0:17:27]} 11. Bxd4 {[%emt 0:12:03]} e5 {[%emt 0:06:38]} 12. fxe5 {[%emt 0:02:48]} Bxe5 {[%emt 0:01:52]} 13. Bxe5 {[%emt 0:02:27]} dxe5 {[%emt 0:00:47]} 14. Qxd8 {[%emt 0:01:41]} Rxd8 {[%emt 0:00:06]} 15. Nd5 {[%emt 0:10:14]} Be6 {[%emt 0:03:20]} 16. O-O-O {[%emt 0:10:49]} Bxd5 {[%emt 0:08:49]} 17. Rxd5 {[%emt 0:02:52]} Rxd5 {[%emt 0:01:10]} 18. exd5 {[%emt 0:00:06]} Rd8 {[%emt 0:03:03]} 19. h3 {[%emt 0:12:24]} Nf6 {[%emt 0:07:59]} 20. Bc4 {[%emt 0:03:37]} Ne4 {[%emt 0:03:29]} 21. Re1 {[%emt 0:02:58]} Nd6 {[%emt 0:00:18]} 22. Bb3 {[%emt 0:00:35]} e4 {[%emt 0:02:42]} 23. Kd2 {[%emt 0:02:37]} f5 {[%emt 0:00:55]} 24. Ke3 {[%emt 0:01:35]} Kf7 {[%emt 0:00:13]} 25. g4 {[%emt 0:01:23]} Kf6 {[%emt 0:01:52]} 26. gxf5 {[%emt 0:01:02]} Nxf5+ {[%emt 0:00:21]} 27. Ke2 {[%emt 0:02:23]} Ke5 {[%emt 0:00:39]} 28. c4 {[%emt 0:01:13]} Nd4+ {[%emt 0:04:41]} 29. Kd1 {[%emt 0:00:25]} Kf4 {[%emt 0:04:29]} 30. Bc2 {[%emt 0:01:38]} e3 {[%emt 0:01:09]} 31. Bd3 {[%emt 0:01:33]} b6 {[%emt 0:04:55]} 32. b4 {[%emt 0:00:39]} b5 {[%emt 0:01:09]} 33. Rf1+ {[%emt 0:03:08]} Kg3 {[%emt 0:01:12]} 34. Rf7 {[%emt 0:00:48]} bxc4 {[%emt 0:03:11]} 35. Bxc4 {[%emt 0:00:16]} Nf3 {[%emt 0:02:53]} 36. Re7 {[%emt 0:03:17]} Kf2 {[%emt 0:00:34]} 37. a4 {[%emt 0:00:46]} g5 {[%emt 0:01:16]} 38. b5 {[%emt 0:00:36]} h5 {[%emt 0:00:49]} 39. a5 {[%emt 0:00:36]} g4 {[%emt 0:00:31]} 40. hxg4 {[%emt 0:00:14]} hxg4 {[%emt 0:00:09]} 41. Rxa7 {[%emt 0:08:49]} Rxd5+ {[%emt 0:01:51]} 42. Kc2 {[%emt 0:05:24]} Rc5 {[%emt 0:00:52]} 43. Kc3 {[%emt 0:02:48]} Ne5 {[%emt 0:04:40]} 44. Kd4 {[%emt 0:03:40]} Rxc4+ {[%emt 0:00:15]} 45. Kxe5 {[%emt 0:00:09]} e2 {[%emt 0:00:06]} 46. Kd5 {[%emt 0:00:26]} e1=Q {[%emt 0:03:32]} 47. Kxc4 {[%emt 0:00:09]} Qe4+ {[%emt 0:00:15]} 48. Kc5 {[%emt 0:01:28]} Qe3+ {[%emt 0:00:07]} 49. Kc6 {[%emt 0:00:05]} Qxa7 {[%emt 0:00:04]} 50. b6 {[%emt 0:00:07]} Qxa5 {[%emt 0:00:12]} 51. b7 {[%emt 0:00:18]} Qd8 {[%emt 0:00:18]} 0-1

[Event "106th British-ch Major 2019"]
[Site "Torquay"]
[Date "2019.07.27"]
[Round "1.7"]
[White "Unnikrishnan, Midhun P"]
[Black "Morgan, Jamie"]
[Result "1-0"]
[ECO "E65"]
[WhiteElo "2142"]
[BlackElo "1894"]
[Annotator "NA"]
[PlyCount "51"]
[EventDate "2019.07.27"]
[EventType "swiss"]
[EventCountry "GBR"]
[SourceTitle "playchess.com"]
[Source "ChessBase"]
[SourceQuality "1"]
[TimeControl "40/5400+30:1800+30"]

1. Nf3 {[%emt 0:00:00]} c5 {[%emt 0:00:00]} 2. c4 {[%emt 0:00:00]} Nf6 {[%emt 0:00:34]} 3. g3 {[%emt 0:00:24]} Nc6 {[%emt 0:01:05]} 4. Bg2 {[%emt 0:00:27]} g6 {[%emt 0:00:45]} 5. d4 {[%emt 0:02:07]} cxd4 {[%emt 0:01:04]} 6. Nxd4 {[%emt 0:00:38]} Bg7 {[%emt 0:05:10]} 7. Nc3 {[%emt 0:01:06]} O-O {[%emt 0:06:12]} 8. O-O {[%emt 0:02:32]} d6 {[%emt 0:10:15]} 9. Nxc6 {[%emt 0:05:23]} bxc6 {[%emt 0:02:12]} 10. Bxc6 {[%emt 0:01:28]} Rb8 {[%emt 0:13:58]} 11. Qa4 {[%emt 0:01:06]} Bb7 {[%emt 0:08:07]} 12. Bxb7 {[%emt 0:02:33]} Rxb7 {[%emt 0:00:09]} 13. Rb1 {[%emt 0:03:48]} Nd7 {[%emt 0:05:49]} 14. Be3 {[%emt 0:12:18]} Nc5 {[%emt 0:02:06]} 15. Bxc5 {[%emt 0:02:34]} dxc5 {[%emt 0:00:02]} 16. Rfd1 {[%emt 0:01:08]} Qb6 {[%emt 0:08:14]} 17. Qc2 {[%emt 0:02:19]} e6 {[%emt 0:04:02]} 18. b3 {[%emt 0:06:37]} Rfb8 {[%emt 0:11:10]} 19. Rd3 {[%emt 0:03:30]} Qc7 {[%emt 0:06:20]} 20. Rbd1 {[%emt 0:01:17]} Qe7 {[%emt 0:01:03]} 21. Ne4 {[%emt 0:04:53]} Rc7 {[%emt 0:06:44]} 22. Qd2 {[%emt 0:03:58]} h6 {[%emt 0:01:39]} 23. Rd7 {[%emt 0:01:40]} Rxd7 {[%emt 0:00:11]} 24. Qxd7 {[%emt 0:00:05]} Qf8 {[%emt 0:01:25]} 25. Qxa7 {[%emt 0:04:19]} Ra8 {[%emt 0:00:28]} 26. Qb6 {[%emt 0:00:58]} 1-0

[Event "106th British-ch Major 2019"]
[Site "Torquay"]
[Date "2019.07.27"]
[Round "1.8"]
[White "Hilton, Tim"]
[Black "Miller, Dominic"]
[Result "1/2-1/2"]
[ECO "D00"]
[WhiteElo "1892"]
[BlackElo "2140"]
[Annotator "NA"]
[PlyCount "66"]
[EventDate "2019.07.27"]
[EventType "swiss"]
[EventCountry "GBR"]
[SourceTitle "playchess.com"]
[Source "ChessBase"]
[SourceQuality "1"]
[TimeControl "40/5400+30:1800+30"]

1. d4 {[%emt 0:00:00]} Nf6 {[%emt 0:04:51]} 2. Nc3 {[%emt 0:00:00]} d5 {[%emt 0:03:08]} 3. Bf4 {[%emt 0:00:25]} g6 {[%emt 0:01:14]} 4. e3 {[%emt 0:00:21]} Bg7 {[%emt 0:00:08]} 5. h4 {[%emt 0:00:24]} h5 {[%emt 0:02:15]} 6. Nf3 {[%emt 0:01:16]} O-O {[%emt 0:03:47]} 7. Be2 {[%emt 0:02:06]} c5 {[%emt 0:14:33]} 8. Ne5 {[%emt 0:02:27]} cxd4 {[%emt 0:08:26]} 9. exd4 {[%emt 0:00:40]} Nc6 {[%emt 0:00:21]} 10. Qd2 {[%emt 0:04:26]} Qb6 {[%emt 0:04:10]} 11. O-O-O {[%emt 0:00:55]} Bf5 {[%emt 0:01:34]} 12. Na4 {[%emt 0:06:24]} Qa5 {[%emt 0:07:19]} 13. Qxa5 {[%emt 0:03:03]} Nxa5 {[%emt 0:00:06]} 14. Nc5 {[%emt 0:04:05]} b6 {[%emt 0:04:00]} 15. Ncd3 {[%emt 0:00:58]} Rac8 {[%emt 0:02:14]} 16. f3 {[%emt 0:02:51]} Nc4 {[%emt 0:02:25]} 17. Nb4 {[%emt 0:11:02]} Nxe5 {[%emt 0:09:26]} 18. dxe5 {[%emt 0:01:08]} a5 {[%emt 0:00:11]} 19. exf6 {[%emt 0:05:59]} axb4 {[%emt 0:00:06]} 20. Bd3 {[%emt 0:01:41]} Bxf6 {[%emt 0:02:17]} 21. Bxf5 {[%emt 0:01:18]} gxf5 {[%emt 0:00:06]} 22. Rxd5 {[%emt 0:00:23]} e6 {[%emt 0:00:42]} 23. Rd2 {[%emt 0:05:44]} Rc4 {[%emt 0:01:31]} 24. g3 {[%emt 0:04:28]} Rfc8 {[%emt 0:06:57]} 25. Be3 {[%emt 0:08:56]} b5 {[%emt 0:01:15]} 26. f4 {[%emt 0:03:25]} R4c6 {[%emt 0:03:47]} 27. Kb1 {[%emt 0:01:24]} Ra6 {[%emt 0:05:59]} 28. Bd4 {[%emt 0:05:07]} Be7 {[%emt 0:05:21]} 29. b3 {[%emt 0:03:32]} Bf8 {[%emt 0:02:59]} 30. Rhd1 {[%emt 0:00:46]} Rca8 {[%emt 0:01:39]} 31. c3 {[%emt 0:00:56]} bxc3 {[%emt 0:00:37]} 32. Bxc3 {[%emt 0:00:04]} b4 {[%emt 0:00:06]} 33. Be5 {[%emt 0:00:53]} Kh7 {[%emt 0:02:08]} 1/2-1/2

[Event "106th British-ch Major 2019"]
[Site "Torquay"]
[Date "2019.07.27"]
[Round "1.9"]
[White "Price, Gwilym"]
[Black "Miller, George"]
[Result "1/2-1/2"]
[ECO "C10"]
[WhiteElo "2138"]
[BlackElo "1891"]
[Annotator "NA"]
[PlyCount "79"]
[EventDate "2019.07.27"]
[EventType "swiss"]
[EventCountry "GBR"]
[SourceTitle "playchess.com"]
[Source "ChessBase"]
[SourceQuality "1"]
[TimeControl "40/5400+30:1800+30"]

1. e4 {[%emt 0:00:00]} e6 {[%emt 0:00:00]} 2. d4 {[%emt 0:00:00]} d5 {[%emt 0:00:00]} 3. Nd2 {[%emt 0:00:00]} dxe4 {[%emt 0:00:01]} 4. Nxe4 {[%emt 0:00:00]} Nd7 {[%emt 0:00:14]} 5. Bd3 {[%emt 0:00:00]} Ngf6 {[%emt 0:00:13]} 6. Qe2 {[%emt 0:00:00]} c5 {[%emt 0:00:33]} 7. Nxf6+ {[%emt 0:00:25]} Nxf6 {[%emt 0:00:54]} 8. dxc5 {[%emt 0:00:47]} Bxc5 {[%emt 0:00:16]} 9. Nf3 {[%emt 0:00:10]} Qb6 {[%emt 0:12:23]} 10. O-O {[%emt 0:02:12]} Bd7 {[%emt 0:01:01]} 11. Ne5 {[%emt 0:02:52]} a6 {[%emt 0:04:59]} 12. Bg5 {[%emt 0:04:17]} Rd8 {[%emt 0:09:10]} 13. Rad1 {[%emt 0:16:56]} Be7 {[%emt 0:03:50]} 14. Bc4 {[%emt 0:01:42]} Bc8 {[%emt 0:06:23]} 15. Ng4 {[%emt 0:08:06]} Rxd1 {[%emt 0:03:03]} 16. Rxd1 {[%emt 0:00:35]} Nxg4 {[%emt 0:00:33]} 17. Qxg4 {[%emt 0:01:05]} Bxg5 {[%emt 0:00:48]} 18. Qxg5 {[%emt 0:00:18]} O-O {[%emt 0:00:34]} 19. Bb3 {[%emt 0:04:15]} Qc7 {[%emt 0:13:58]} 20. h4 {[%emt 0:02:35]} h6 {[%emt 0:04:45]} 21. Qd2 {[%emt 0:01:30]} Qe7 {[%emt 0:02:39]} 22. g3 {[%emt 0:00:58]} Qf6 {[%emt 0:02:08]} 23. c3 {[%emt 0:01:00]} b5 {[%emt 0:00:35]} 24. Bc2 {[%emt 0:02:38]} Bb7 {[%emt 0:05:55]} 25. Qe3 {[%emt 0:03:49]} Bd5 {[%emt 0:09:08]} 26. a3 {[%emt 0:04:32]} Rd8 {[%emt 0:06:25]} 27. Be4 {[%emt 0:05:26]} Bxe4 {[%emt 0:00:25]} 28. Rxd8+ {[%emt 0:00:06]} Qxd8 {[%emt 0:00:09]} 29. Qxe4 {[%emt 0:00:08]} Qd6 {[%emt 0:02:19]} 30. Kg2 {[%emt 0:01:04]} Kf8 {[%emt 0:01:27]} 31. a4 {[%emt 0:15:22]} Qd5 {[%emt 0:04:33]} 32. Qxd5 {[%emt 0:00:56]} exd5 {[%emt 0:00:01]} 33. axb5 {[%emt 0:01:31]} axb5 {[%emt 0:00:01]} 34. Kf3 {[%emt 0:00:08]} Ke7 {[%emt 0:00:02]} 35. Ke3 {[%emt 0:00:39]} Kd6 {[%emt 0:01:03]} 36. Kd4 {[%emt 0:00:27]} g6 {[%emt 0:02:25]} 37. g4 {[%emt 0:03:36]} g5 {[%emt 0:00:47]} 38. h5 {[%emt 0:00:57]} f6 {[%emt 0:00:12]} 39. b4 {[%emt 0:07:16]} Kc6 {[%emt 0:00:34]} 40. Kd3 {[%emt 0:01:00]} 1/2-1/2